fUST/lending_fUST_20240107
["ID","MTS","AMOUNT","RATE_DAILY","PERIOD"]
[310646136,1704627035805,-153.0,0.00024756,2]
[310646137,1704627035816,-153.0,0.00024756,2]
[310646138,1704627035826,-153.0,0.00024756,2]
[310646139,1704627035836,-153.8844977,0.00024756,2]
[310646140,1704627035846,-153.0,0.00024756,2]
[310646141,1704627035856,-153.0,0.00024756,2]
[310646142,1704627035972,-153.0,0.00024756,2]
[310646143,1704627035983,-153.0,0.00024756,2]
[310646144,1704627035993,-153.0,0.00024756,2]
[310646145,1704627036005,-2483.64789701,0.00025,2]
[310646146,1704627036016,-4708.14539668,0.00025,2]
[310646147,1704627036026,-151.0,0.00025,2]
[310646148,1704627036037,-151.0,0.00025,2]
[310646149,1704627036048,-616.275085,0.00025,2]
[310646150,1704627036059,-616.275085,0.00025,2]
[310646151,1704627036069,-616.275085,0.00025,2]
[310646152,1704627036079,-616.275085,0.00025,2]
[310646153,1704627036090,-627.72063283,0.00025,4]
[310646154,1704627036101,-616.275085,0.00025148,2]
[310646155,1704627036111,-616.275085,0.00025148,2]
[310646156,1704627036121,-616.275085,0.00025158,2]
[310646157,1704627036131,-616.275085,0.00025158,2]
[310646158,1704627036142,-616.275085,0.00025168,2]
[310646159,1704627036152,-616.275085,0.00025168,2]
[310646160,1704627036163,-153.0,0.00025178,2]
[310646161,1704627036172,-153.0,0.00025178,2]
[310646162,1704627036182,-151.0,0.00025266,2]
[310646163,1704627036193,-151.0,0.00025266,2]
[310646164,1704627036204,-197.99456697,0.00025274,2]
[310646196,1704627038474,-17.51459103,0.00025274,2]
[310646197,1704627038485,-616.275085,0.00025274,2]
[310646198,1704627038495,-616.275085,0.00025274,2]
[310646199,1704627038504,-616.275085,0.00025274,2]
[310646200,1704627038515,-616.275085,0.00025274,2]
[310646201,1704627038525,-280.57197351,0.00025274,2]
[310646202,1704627038534,-1464.07780358,0.00025274,2]
[310646203,1704627038548,-2362.39951447,0.00025274,2]
[310646214,1704627041451,-548.69079618,0.00025274,2]
[310646229,1704627043307,-2221.36856002,0.00025274,2]
[310646230,1704627043317,-153.0,0.00025478,2]
[310646231,1704627043327,-153.0,0.00025534,2]
[310646232,1704627043336,-616.275085,0.00025548,2]
[310646233,1704627043345,-616.275085,0.00025548,2]
[310646234,1704627043354,-153.0,0.00025578,2]
[310646235,1704627043364,-150.0,0.00025722,2]
[310646237,1704627043373,-177.915,0.00025966,2]
[310646238,1704627043382,-525.56728109,0.00026,2]
[310646239,1704627043391,-616.275085,0.00026199,2]
[310646241,1704627043400,-616.275085,0.00026199,2]
[310646243,1704627043410,-2483.56899447,0.00026199,2]
[310646245,1704627043420,-10517.47982442,0.000262,2]
[310646246,1704627043444,-8000.0,0.000262,2]
[310646268,1704627253456,300.0,0.000269,12]
[310646269,1704627281263,150.81901718,0.00029141,120]
[310646293,1704627515648,-245.89708538,0.00019984,2]
[310646294,1704627515683,-758.17231075,0.00019985,2]
[310646295,1704627524769,-491.86120774,0.00019985,2]
[310646296,1704627524803,-154.82968734,0.00019985,3]
[310646329,1704628032613,521.52789577,0.00019985,2]
[310646331,1704628077926,154.82968734,0.00019985,3]
[310646333,1704628135346,-154.82968734,0.00019998,2]
[310646383,1704628232485,-1081.95,0.00019999,2]
[310646494,1704628238741,-168.08351849,0.00019999,2]
[310646495,1704628238751,-508.27694312,0.0002,2]
[310646496,1704628238761,-154.82968734,0.00022996,4]
[310646497,1704628238770,-255.16835407,0.00022997,2]
[310646498,1704628238780,-236.22396845,0.00022997,2]
[310646499,1704628238790,-521.52789577,0.00023827,2]
[310646500,1704628238800,-166.666666,0.00023828,2]
[310646501,1704628238809,-845.33148789,0.00024312,2]
[310646597,1704629055402,300.0,0.000269,12]
[310646764,1704629434198,-676.51927757,0.00021932,2]
[310646765,1704629434209,-164.1157709,0.00021933,2]
[310646766,1704629434219,-154.82968734,0.00021934,4]
[310646767,1704629434228,-521.52789577,0.00021935,2]
[310646768,1704629434237,-1250.03351849,0.00021935,2]
[310646769,1704629434249,-886.89399904,0.00021954,2]
[310646770,1704629434260,-1534.44345184,0.00022,2]
[310646788,1704629438922,-2386.24197369,0.00022,2]
[310646789,1704629438933,-166.666666,0.00023343,2]
[310646790,1704629438943,-250.0,0.0002376,2]
[310646791,1704629438953,-201.294411,0.00023768,2]
[310646792,1704629438963,-4914.28764176,0.00023858,2]
[310646793,1704629438972,-657.903301,0.00023859,2]
[310646794,1704629438983,-657.903301,0.00023859,2]
[310646795,1704629438993,-657.903301,0.00023859,2]
[310646796,1704629439003,-657.903301,0.00023859,2]
[310646797,1704629439013,-657.903301,0.00023859,2]
[310646798,1704629439024,-166.666666,0.0002398,2]
[310646799,1704629439034,-2091.84772566,0.00024308,2]
[310646800,1704629439045,-166.666666,0.00024616,2]
[310646801,1704629439186,-2483.64789701,0.00025,2]
[310646802,1704629439200,-154.82968734,0.00025,2]
[310646803,1704629439210,-166.666666,0.00025252,2]
[310646804,1704629439221,-151.0,0.00025607,2]
[310646805,1704629439232,-250.0,0.00025607,2]
[310646806,1704629439242,-150.0,0.00025607,2]
[310646807,1704629439252,-166.666666,0.00025889,2]
[310646808,1704629439262,-3744.7753958,0.000262,2]
[310646809,1704629439275,-1299.30570456,0.000262,2]
[310646810,1704629439287,-5138.61999987,0.000262,2]
[310646811,1704629439317,-311.5161361,0.000262,2]
[310646812,1704629439329,-11664.75873894,0.000262,2]
[310646828,1704629441812,-4267.72731406,0.000262,2]
[310646829,1704629441821,-175.81065711,0.00026277,2]
[310646830,1704629441831,-28.36202879,0.00026278,2]
[310646831,1704629441843,-680.79789022,0.00026278,2]
[310646832,1704629441852,-154.90705577,0.00026298,2]
[310646833,1704629441862,-2000.0,0.000263,2]
[310646834,1704629441872,-2000.0,0.0002631,2]
[310646835,1704629441881,-258.49578979,0.00026314,2]
[310646836,1704629441890,-863.49518255,0.00026314,2]
[310646837,1704629441899,-5126.47044043,0.00026314,2]
[310646838,1704629441910,-525.96502732,0.00026314,2]
[310646839,1704629441919,-2000.0,0.0002632,2]
[310646840,1704629441929,-151.0,0.0002632,2]
[310646841,1704629441938,-2000.0,0.0002633,2]
[310646842,1704629441948,-2325.27649147,0.00026339,2]
[310646843,1704629441957,-2000.0,0.0002634,2]
[310646844,1704629441969,-1485.44653157,0.0002635,2]
[310646845,1704629441981,-514.55346843,0.0002635,2]
[310646846,1704629441991,-2000.0,0.0002636,2]
[310646847,1704629442000,-29.12841688,0.0002636,2]
[310646848,1704629442012,-121.87158312,0.0002636,2]
[310646849,1704629442021,-2000.0,0.0002637,2]
[310646850,1704629442030,-179.88033732,0.00026379,2]
[310646851,1704629442039,-1633.78111394,0.0002638,2]
[310646875,1704629443729,-366.21888606,0.0002638,2]
[310646877,1704629443740,-245.85262631,0.00026388,2]
[310646878,1704629443750,-587.87259444,0.00026389,2]
[310647062,1704630257062,38127.79792098,0.00026389,7]
[310647083,1704630428121,-521.52789577,0.00024151,2]
[310647084,1704630428142,-294.24481386,0.00024152,2]
[310647085,1704630428162,-176.44509333,0.00024153,2]
[310647086,1704630428185,-154.82968734,0.00024153,4]
[310647087,1704630428206,-330.05315406,0.00024153,2]
[310647158,1704630631883,-255.16835407,0.00021634,2]
[310647160,1704630631894,-175.45403617,0.00021635,2]
[310647162,1704630631906,-2992.53948309,0.00021729,2]
[310647165,1704630631917,-3533.63543785,0.00021729,2]
[310647167,1704630631928,-20819.87770991,0.0002173,2]
[310647169,1704630631938,-1250.03351849,0.00021731,2]
[310647171,1704630631949,-18356.96146042,0.00021731,2]
[310647391,1704630634291,-1292.24223971,0.00021731,2]
[310647394,1704630634301,-1577.69517806,0.00021732,2]
[310647395,1704630634310,-14.95263828,0.00021733,2]
[310647470,1704630638211,-551.198,0.00021633,2]
[310647549,1704630690616,150.81901718,0.00029664,120]
[310647558,1704630855810,355.59884,0.000269,12]
[310648107,1704632055296,150.80395486,0.00029638,120]
[310648112,1704632164480,200.0,0.000237,7]
[310648124,1704632766498,190.34062532,0.00018748,2]
[310648125,1704632766527,530.26062673,0.00018748,2]
[310648126,1704632766555,744.7808712,0.00018748,2]
[310648127,1704632784479,207.57227805,0.00018746,2]
[310648129,1704632831380,342.22178639,0.00018746,2]
[310648130,1704632838202,1205.42506436,0.00018746,2]
[310648131,1704632838231,2623.98516097,0.00018746,2]
[310648132,1704632853189,154.81422293,0.00018746,2]
[310648133,1704632853371,342.22178639,0.00018746,2]
[310648134,1704632856195,3829.41022533,0.00018746,2]
[310648135,1704632862209,1522.97169013,0.00018746,2]
[310648136,1704632867184,157.02749759,0.00018746,2]
[310648137,1704632869390,342.83391542,0.00018746,2]
[310648138,1704632872319,1026.73550124,0.00018746,2]
[310648139,1704632874719,-157.75797894,0.00018746,2]
[310648140,1704632874750,-775.55839265,0.00018746,2]
[310648141,1704632875045,-19.04727289,0.00018746,2]
[310648142,1704632886134,-521.52789577,0.00018744,2]
[310648143,1704632886162,-152.74052784,0.00018745,2]
[310648144,1704632886261,-13.76058007,0.00018745,2]
[310648392,1704633038399,-164.82131299,0.00021191,2]
[310648393,1704633038408,-642.55748837,0.00021191,2]
[310648394,1704633038417,-459.8979346,0.00021192,2]
[310648395,1704633038509,-61.62996117,0.00021192,2]
[310648397,1704633038518,-255.16835407,0.00021192,2]
[310648399,1704633038527,-154.81422293,0.00021193,2]
[310648401,1704633038537,-7985.15088748,0.00021193,2]
[310648488,1704633041751,-7722.29730033,0.00021193,2]
[310648564,1704633043288,-154.81422293,0.0002119,2]
[310648566,1704633043299,-4547.55040866,0.00021193,2]
[310648870,1704634034279,-1477.10064436,0.00019155,2]
[310648884,1704634154142,2947.99,0.00029,30]
[310649125,1704634238653,-1250.03351849,0.00019141,2]
[310649127,1704634238664,-521.52789577,0.00019142,2]
[310649129,1704634238673,-176.44509333,0.00019142,2]
[310649131,1704634238684,-1290.22294379,0.00019142,2]
[310649133,1704634238693,-1577.69517806,0.00019143,2]
[310649135,1704634238702,-154.82968734,0.00019144,3]
[310649137,1704634238712,-294.24481386,0.00019144,2]
[310649139,1704634238722,-147.43389572,0.00019144,2]
[310649141,1704634238735,-886.35,0.00019144,2]
[310649157,1704634241694,-19815.44734183,0.00019144,2]
[310649158,1704634241704,-3735.80135677,0.00019145,2]
[310649159,1704634241713,-1020.50362176,0.00019153,2]
[310649160,1704634241723,-3928.64933035,0.00019162,2]
[310649161,1704634241732,-262.3394681,0.00019178,2]
[310649162,1704634241742,-508.661903,0.00019376,2]
[310649163,1704634241752,-508.661903,0.00019376,2]
[310649164,1704634241764,-469.37613453,0.00019376,2]
[310649165,1704634241774,-2069.11950844,0.00019376,2]
[310649166,1704634241784,-2099.1643818,0.00019376,2]
[310649167,1704634241793,-151.0,0.00019378,2]
[310649168,1704634241802,-356.582183,0.0002,2]
[310649169,1704634241812,-356.582183,0.0002,2]
[310649170,1704634241822,-356.582183,0.0002,2]
[310649171,1704634241831,-356.582183,0.0002,2]
[310649172,1704634241840,-356.582183,0.0002,2]
[310649173,1704634241849,-151.0,0.00020171,2]
[310649174,1704634241859,-151.369176,0.00020171,2]
[310649175,1704634241868,-508.661903,0.00020171,2]
[310649176,1704634241878,-508.661903,0.00020171,2]
[310649177,1704634241887,-3319.56134004,0.00020171,2]
[310649178,1704634241897,-151.0,0.00021168,2]
[310649179,1704634241906,-508.661903,0.00021168,2]
[310649180,1704634241915,-508.661903,0.00021168,2]
[310649181,1704634241925,-2075.17675996,0.00021178,3]
[310649289,1704634249278,-4453.17730401,0.00019143,2]
[310649290,1704634249290,-13793.73324004,0.00021178,3]
[310649292,1704634249301,-13224.09,0.00021178,3]
[310649294,1704634249312,-11020.08,0.00021178,3]
[310649295,1704634249322,-151.0,0.00021188,2]
[310649296,1704634249334,-151.0,0.00021188,2]
[310649297,1704634249345,-508.661903,0.00021188,2]
[310649298,1704634249356,-508.661903,0.00021188,2]
[310649299,1704634249366,-10143.45479953,0.00021188,2]
[310649347,1704634556595,-3297.5,0.000295,30]
[310649507,1704634714495,-820.03,0.000295,30]
[310649519,1704634781378,-975.43969278,0.00019034,2]
[310649520,1704634781409,-260.15058301,0.00019035,2]
[310649521,1704634781439,-3764.40972421,0.00019035,2]
[310649522,1704634781653,-3787.13954645,0.00019035,2]
[310649523,1704634781683,-874.30897606,0.00019036,2]
[310649524,1704634781713,-338.55147749,0.00019036,2]
[310649525,1704634781753,-1239.14370057,0.00019036,2]
[310649526,1704634781783,-245.69098286,0.00019036,2]
[310649527,1704634781812,-560.14633467,0.00019036,2]
[310649528,1704634781841,-176.44509333,0.00019036,2]
[310649529,1704634781869,-521.52789577,0.00019037,2]
[310649530,1704634781899,-1290.22294379,0.00019037,2]
[310649531,1704634781931,-966.82304901,0.00019037,2]
[310649532,1704634781969,-5000.0,0.00019037,2]
[310649533,1704634782003,-1893.31973282,0.00019037,2]
[310649534,1704634782031,-343.79714882,0.00019038,2]
[310649535,1704634782060,-2762.88311836,0.00019038,2]
[310649536,1704634782106,-621.05682761,0.00019038,2]
[310649537,1704634782136,-294.24481386,0.00019038,2]
[310649538,1704634782168,-154.87609912,0.00019039,3]
[310649539,1704634782197,-3735.80135677,0.00019039,2]
[310649540,1704634782227,-162.64737815,0.00019039,2]
[310649541,1704634782256,-31.37352449,0.0001904,2]
[310649542,1704634782289,-302.68793098,0.0001904,2]
[310649543,1704634782319,-154.87609912,0.0001904,2]
[310649544,1704634782349,-1250.03351849,0.0001904,2]
[310649545,1704634782379,-3292.40245141,0.00019052,2]
[310649546,1704634782418,-5000.0,0.00019052,2]
[310649547,1704634782453,-5000.0,0.00019052,2]
[310649548,1704634782555,-5000.0,0.00019052,2]
[310649549,1704634782673,-451.49189854,0.00019033,2]
[310649550,1704634782702,-4548.50810146,0.00019052,2]
[310649551,1704634782775,-5000.0,0.00019052,2]
[310649552,1704634783003,-5000.0,0.00019052,2]
[310649553,1704634783037,-5000.0,0.00019052,2]
[310649554,1704634783195,-5000.0,0.00019052,2]
[310649555,1704634783310,-5000.0,0.00019052,2]
[310649556,1704634783411,-5000.0,0.00019052,2]
[310649557,1704634783526,-5000.0,0.00019052,2]
[310649558,1704634783633,-5000.0,0.00019052,2]
[310649559,1704634783811,-3177.49378307,0.00019052,2]
[310649560,1704634783839,-764.75455677,0.00019057,2]
[310649561,1704634783867,-175.113313,0.00019178,2]
[310649562,1704634783895,-184.92688175,0.00021076,2]
[310649563,1704634783924,-323.38097131,0.00021175,2]
[310649564,1704634783952,-323.76462615,0.00021175,2]
[310649565,1704634783980,-50.56586795,0.00021176,2]
[310649566,1704634784040,-100.43413205,0.00021176,2]
[310649567,1704634784068,-1069.48811553,0.00021176,2]
[310649568,1704634784096,-3830.07775242,0.00021176,2]
[310649569,1704634784133,-5000.0,0.00021176,2]
[310649570,1704634784209,-4084.69537287,0.00021176,2]
[310649571,1704634784238,-470.20519342,0.00021177,2]
[310649572,1704634784265,-245.85262631,0.00021177,2]
[310649573,1704634784293,-199.2468074,0.00021186,2]
[310649574,1704634784348,-360.4656702,0.00021186,2]
[310649575,1704634784375,-1359.58772744,0.00021186,2]
[310649576,1704634784404,-578.2821465,0.00021187,2]
[310649577,1704634784431,-168.07478732,0.00021208,2]
[310649578,1704634784458,-155.37984221,0.0002133,2]
[310649579,1704634784485,-305.197142,0.0002133,2]
[310649580,1704634784513,-305.197142,0.0002133,2]
[310649581,1704634784540,-1767.81554233,0.00021558,2]
[310649582,1704634784572,-391.82418436,0.00021558,2]
[310649583,1704634786296,563.327319,0.00021354,2]
[310649585,1704634793523,-2321.83794211,0.00021731,2]
[310649586,1704634795420,2469.4358589,0.00020698,2]
[310649587,1704634795909,-1759.71358181,0.00020698,2]
[310649588,1704634798974,-643.03128117,0.00020698,2]
[310649589,1704634800718,154.87609912,0.00020698,4]
[310649591,1704634825662,-154.87609912,0.00020696,4]
[310649592,1704634825691,-200.0,0.00021731,2]
[310649595,1704634839622,-200.0,0.00021731,2]
[310649598,1704634851909,-154.87609912,0.00020696,4]
[310649599,1704634851937,-343.79714882,0.00021731,2]
[310649600,1704634855319,-521.52789577,0.00021731,2]
[310649601,1704634862505,-874.30897606,0.00021731,2]
[310649602,1704634863927,176.54849611,0.00021731,2]
[310649603,1704634863954,383.59783856,0.00021731,2]
[310649604,1704634864249,667.25963361,0.00021731,2]
[310649605,1704634864277,1050.85747217,0.00021731,2]
[310649606,1704634864720,-5000.0,0.00021731,2]
[310649607,1704634864978,-154.87609912,0.00020696,4]
[310649608,1704634865008,-1250.03351849,0.00021731,2]
[310649609,1704634865037,-1142.02567605,0.00021731,2]
[310649610,1704634866247,2453.06470634,0.00021731,2]
[310649611,1704634866277,1282.73665043,0.00021731,2]
[310649617,1704634899850,-154.87609912,0.00020696,4]
[310649618,1704634899878,-176.44509333,0.00021731,2]
[310649619,1704634909075,-459.79,0.000295,30]
[310649622,1704634914054,-154.87609912,0.00020696,4]
[310649623,1704634914082,-986.37056655,0.00021731,2]
[310649625,1704634922248,-642.55748837,0.00021731,2]
[310649627,1704634926853,-164.82131299,0.00021731,2]
[310649628,1704634926881,-190.73824937,0.00021731,2]
[310649629,1704634927045,-683.57072669,0.00021731,2]
[310649630,1704634928739,154.87609912,0.00020246,4]
[310649631,1704634930286,-520.65037952,0.00021731,2]
[310649632,1704634930713,183.62166804,0.00016871,2]
[310649633,1704634930741,704.27204756,0.00016871,2]
[310649634,1704634930768,187.83384668,0.00016871,2]
[310649636,1704634931374,516.43820088,0.00021731,2]
[310649637,1704634931403,704.27204756,0.00021731,2]
[310649638,1704634931766,-29.32327005,0.00021731,2]
[310649639,1704634931794,-521.52789577,0.00021731,2]
[310649640,1704634936554,-2871.42021001,0.0002173,2]
[310649641,1704634936682,-136.60627143,0.0002173,2]
[310649642,1704634936757,-1599.62164808,0.0002173,2]
[310649643,1704634936786,-2510.88730108,0.0002173,2]
[310649644,1704634943281,-2706.88894651,0.00021729,2]
[310649645,1704634945480,139.8968967,0.00021731,2]
[310649646,1704634945508,121.72106194,0.00021731,2]
[310649648,1704634947881,-170.35164909,0.00021731,2]
[310649649,1704634948744,154.87609912,0.00020237,4]
[310649650,1704634951171,-2633.8843159,0.00021731,2]
[310649651,1704634952744,141.35698931,0.00021731,2]
[310649652,1704634952774,2775.24130521,0.00021731,2]
[310649653,1704634952803,2775.24130521,0.00021731,2]
[310649654,1704634953192,-2168.3031821,0.00021731,2]
[310649655,1704634953767,2831.6968179,0.00021376,2]
[310649656,1704634953799,2318.97179409,0.00021376,2]
[310649657,1704634953828,2318.97179409,0.00021376,2]
[310649658,1704634954285,-5000.0,0.00021376,2]
[310649659,1704634954560,-5000.0,0.00021376,2]
[310649660,1704634954679,-5000.0,0.00021376,2]
[310649661,1704634954832,-2430.35959392,0.00021376,2]
[310649662,1704634954862,-606.31239599,0.00021731,2]
[310649665,1704635005427,-154.87609912,0.00020209,4]
[310649666,1704635005457,-874.30897606,0.00021731,2]
[310649667,1704635007958,521.52789577,0.00021731,2]
[310649668,1704635010327,-1250.03351849,0.00021731,2]
[310649676,1704635028442,-225.217514,0.00021064,2]
[310649679,1704635040271,-210.86094082,0.00021731,2]
[310649685,1704635067266,-536.52060719,0.00019631,2]
[310649687,1704635085967,-874.30897606,0.00021731,2]
[310649689,1704635090975,-521.52789577,0.00021731,2]
[310649691,1704635096424,183.60411772,0.00021731,2]
[310649692,1704635096453,705.13201349,0.00021731,2]
[310649693,1704635096481,361.29738728,0.00021731,2]
[310649694,1704635106374,210.86094082,0.00021731,2]
[310649697,1704635125064,-197.99456697,0.00021732,2]
[310649698,1704635125094,-2925.69362059,0.00021732,2]
[310649699,1704635125323,-63.74873852,0.00021732,2]
[310649740,1704635393476,-5000.0,0.00020957,2]
[310649741,1704635393669,-5000.0,0.00020957,2]
[310649742,1704635393778,-5000.0,0.00020957,2]
[310649743,1704635393955,-5000.0,0.00020957,2]
[310649744,1704635394082,-4900.0,0.00020957,2]
[310650105,1704635441837,-210.86094082,0.00021908,2]
[310650107,1704635441847,-874.30897606,0.00021909,2]
[310650109,1704635441857,-8295.63503668,0.00021916,2]
[310650326,1704635459834,-155.37074649,0.00020957,2]
[310650327,1704635459865,-3403.16610359,0.00021476,2]
[310650328,1704635460076,-72.62320102,0.00021476,2]
[310650329,1704635465643,200.0,0.00024104,7]
[310650330,1704635470308,-5000.0,0.00019723,2]
[310650331,1704635470367,-2551.54927066,0.00019723,2]
[310650332,1704635483643,-1166.26550761,0.00021465,2]
[310650333,1704635483778,-23.80133689,0.00021465,2]
[310650334,1704635489928,-5000.0,0.00019713,2]
[310650335,1704635490189,-102.18187049,0.00019713,2]
[310650336,1704635509251,-5000.0,0.00021893,3]
[310650337,1704635509475,-2818.96,0.00021893,3]
[310650338,1704635516336,-263.15067216,0.0002,2]
[310650339,1704635516653,-5.37042188,0.0002,2]
[310650341,1704635520385,-5000.0,0.00021893,3]
[310650342,1704635520632,-1515.8,0.00021893,3]
[310650343,1704635531576,-5000.0,0.00021893,3]
[310650344,1704635531730,-2894.86,0.00021893,3]
[310650345,1704635537987,-574.93807063,0.000219,2]
[310650346,1704635538168,-11.73343001,0.000219,2]
[310650347,1704635543073,-5000.0,0.00021893,3]
[310650348,1704635543298,-1579.05,0.00021893,3]
[310650350,1704635544675,-5000.0,0.000219,2]
[310650351,1704635544712,-5000.0,0.000219,2]
[310650352,1704635544844,-5000.0,0.000219,2]
[310650353,1704635544947,-5000.0,0.000219,2]
[310650354,1704635545159,-5000.0,0.000219,2]
[310650355,1704635545260,-1401.52212518,0.000219,2]
[310650357,1704635553899,-5000.0,0.00021893,3]
[310650358,1704635554202,-482.54,0.00021893,3]
[310650360,1704635558637,-5000.0,0.00021682,2]
[310650361,1704635558739,-5000.0,0.00021682,2]
[310650362,1704635558904,-5000.0,0.00021682,2]
[310650363,1704635559191,-3058.74816531,0.00021682,2]
[310650365,1704635564285,-306.564228,0.000219,2]
[310650366,1704635564445,-6.25641282,0.000219,2]
[310650367,1704635565087,164.1157709,0.000219,2]
[310650380,1704635632507,6419.22719578,0.0001631,2]
[310650382,1704635639164,150.87929656,0.00029584,120]
[310650384,1704635648537,649.92038778,0.000125,2]
[310650388,1704635662671,268.37192222,0.0001,2]
[310650406,1704635804364,-1676.29999929,0.00045669,120]
[310650407,1704635804388,-1788.8919015,0.00045669,120]
[310650408,1704635804408,-5000.0,0.00045669,120]
[310650409,1704635804427,-5000.0,0.00045669,120]
[310650410,1704635804447,-3464.37191584,0.00045669,120]
[310650411,1704635804467,-1619.08173121,0.00045669,120]
[310650412,1704635804487,-2233.08329676,0.00045669,120]
[310650413,1704635804507,-221.15640539,0.00045669,120]
[310650414,1704635804526,-30430.45994719,0.00045669,120]
[310650415,1704635804545,-1955.82443674,0.00045669,120]
[310650416,1704635804565,-4810.91074252,0.00045669,120]
[310650417,1704635804584,-440.69593527,0.00045669,120]
[310650418,1704635804604,-488.22038058,0.00045669,120]
[310650419,1704635804624,-384.35836582,0.00045669,120]
[310650420,1704635804643,-814.98143468,0.00045669,120]
[310650421,1704635804662,-683.63867144,0.00045669,120]
[310650422,1704635804682,-4566.16006423,0.00045669,120]
[310650423,1704635804701,-1046.86374061,0.00045669,120]
[310650424,1704635804720,-70708.74119715,0.00045669,120]
[310650461,1704635964874,1464.84555445,0.00015096,2]
[310650462,1704635971260,-874.30897606,0.00019682,2]
[310650463,1704635971289,-901.13864353,0.00019682,2]
[310650464,1704635971319,-312.82064082,0.00019683,2]
[310650465,1704635971349,-1736.22791951,0.00019684,2]
[310650466,1704635971377,-1175.50382008,0.00019685,2]
[310650467,1704635971418,-3172.76,0.00020109,3]
[310650468,1704635971448,-1827.24,0.0002012,3]
[310650469,1704635971482,-1695.91638993,0.00019685,2]
[310650470,1704635971511,-337.826271,0.00019688,2]
[310650471,1704635971538,-2966.25733907,0.00019725,2]
[310650472,1704635971574,-2741.54,0.0002012,3]
[310650473,1704635971604,-2258.46,0.0002012,3]
[310650474,1704635971637,-1548.86,0.0002012,3]
[310650475,1704635971671,-507.9895243,0.00019725,2]
[310650476,1704635971699,-357.68040479,0.000198,2]
[310650477,1704635971727,-4134.33007091,0.00020119,2]
[310650478,1704635971765,-5000.0,0.00020119,2]
[310650479,1704635971846,-5000.0,0.00020119,2]
[310650480,1704635972015,-5000.0,0.00020119,2]
[310650481,1704635972074,-5000.0,0.00020119,2]
[310650482,1704635972192,-2255.31209624,0.00020119,2]
[310650483,1704635972221,-2744.68790376,0.00020119,2]
[310650484,1704635972268,-5000.0,0.00020119,2]
[310650485,1704635972383,-5000.0,0.00020119,2]
[310650486,1704635972498,-975.04064545,0.00018106,2]
[310650487,1704635972527,-4024.95935455,0.00020119,2]
[310650488,1704635972614,-5000.0,0.00020119,2]
[310650489,1704635972726,-5000.0,0.00020119,2]
[310650490,1704635972833,-5000.0,0.00020119,2]
[310650491,1704635972938,-5000.0,0.00020119,2]
[310650492,1704635973067,-5000.0,0.00020119,2]
[310650493,1704635973209,-5000.0,0.00020119,2]
[310650494,1704635973281,-5000.0,0.00020119,2]
[310650495,1704635973502,-5000.0,0.00020119,2]
[310650496,1704635973591,-5000.0,0.00020119,2]
[310650497,1704635973653,-5000.0,0.00020119,2]
[310650498,1704635973722,-586.67150064,0.00019681,2]
[310650499,1704635973750,-4413.32849936,0.00020119,2]
[310650500,1704635973841,-5000.0,0.00020119,2]
[310650501,1704635973935,-2134.63886603,0.00020119,2]
[310650502,1704635973963,-2865.36113397,0.00020119,2]
[310650503,1704635974033,-5000.0,0.00020119,2]
[310650504,1704635974155,-5000.0,0.00020119,2]
[310650505,1704635974293,-5000.0,0.00020119,2]
[310650506,1704635974366,-1783.84256616,0.00020119,2]
[310650507,1704635974394,-322.52163965,0.00020128,2]
[310650508,1704635974533,-2893.63579419,0.00020128,2]
[310650509,1704635974567,-5000.0,0.00020128,2]
[310650510,1704635974604,-42.23536122,0.00020128,2]
[310650511,1704635974631,-231.31484597,0.00020128,2]
[310650512,1704635974660,-2098.19039752,0.00020129,2]
[310650513,1704635974689,-469.16586191,0.00020129,2]
[310650514,1704635974718,-2159.09353338,0.00020129,2]
[310650515,1704635974751,-5000.0,0.00020129,2]
[310650516,1704635974948,-5000.0,0.00020129,2]
[310650517,1704635974996,-3767.43704989,0.00020129,2]
[310650518,1704635975025,-1232.56295011,0.00020131,2]
[310650519,1704635975172,-5000.0,0.00020131,2]
[310650520,1704635975259,-5000.0,0.00020131,2]
[310650521,1704635975371,-5000.0,0.00020131,2]